Cogmind - Beta 13 @@@ ROGUE MODE // 2024.04.12 @ 23:32:40 Player: Olafz Result: Destroyed by as-32904 with Assembled Blade Performance ------------- Evolutions (0) 0 Regions Visited (2) 400 Robots Destroyed (18) 90 Value Destroyed (471) 471 Prototype IDs (2) 40 Alien Tech Used (0) 0 Bonus (35) 35 TOTAL SCORE: 1036 Bonus ------- Follower Combat Kills 35 Cogmind --------- Core Integrity 0/250 Matter 292/300 Energy 100/100 System Corruption 0% Temperature Cool (0) Movement Core (800) Ox15 Location -10/Mines Parts ------- > --- POWER (1) -------- (None) > --- PROPULSION (2) --- (None) > --- UTILITY (2) ------ High-capacity Storage Unit > --- WEAPON (2) ------- Particle Gun Light Cannon > --- INVENTORY (20) --- Ion Engine Light Ion Engine Aluminum Leg Aluminum Leg Medium Storage Unit Utility Shielding EM Pulse Gun Assault Rifle Peak State ------------ > --- POWER ------------ Light Nuclear Core > --- PROPULSION ------- Light Treads Light Treads > --- UTILITY ---------- High-capacity Storage Unit Tractor Beam > --- WEAPON ----------- Particle Gun Light Cannon > --- INVENTORY -------- Ion Engine Light Ion Engine Aluminum Leg Aluminum Leg Medium Storage Unit Utility Shielding EM Pulse Gun Assault Rifle [Rating: 10] Favorites ----------- Power Light Nuclear Core Engine Ion Engine Power Core Light Nuclear Core Propulsion Light Treads Treads Light Treads Leg Aluminum Leg Utility High-capacity Storage Unit Device Tractor Beam Storage High-capacity Storage Unit Weapon EM Pulse Gun Energy Gun EM Pulse Gun Ballistic Cannon Light Cannon Build | -11 -10 -10 ------- Run | Yrd Mat Min Slots Evolved . | . . . Power . | . . . Propulsion . | . . . Utility . | . . . Weapon . | . . . Parts Attached 8 | . 6 2 Power 1 | . 1 . Engine . | . . . Core 1 | . 1 . Reactor . | . . . Propulsion 2 | . 2 . Treads 2 | . 2 . Leg . | . . . Wheel . | . . . Hover . | . . . Flight . | . . . Utility 3 | . 3 . Device 1 | . 1 . Storage 2 | . 2 . Processor . | . . . Hackware . | . . . Protection . | . . . Artifact . | . . . Weapon 2 | . . 2 Energy Gun 1 | . . 1 Energy Cannon . | . . . Ballistic Gun . | . . . Ballistic Cannon 1 | . . 1 Launcher . | . . . Special Weapon . | . . . Impact Weapon . | . . . Slashing Weapon . | . . . Piercing Weapon . | . . . Special Melee Weapon . | . . . Unidentified Prototypes . | . . . Parts Lost 5 | . 1 4 Power 1 | . . 1 Propulsion 2 | . . 2 Utility 1 | . . 1 Weapon 1 | . 1 . Highest Loss Streak 4 | . 1 4 To Critical Strikes . | . . . Average Slot Usage (%) 95 | . 96 87 Engine 5 | . 6 . Core 7 | . 7 11 Treads 26 | . 26 24 Leg 1 | . 1 . Device 12 | . 12 11 Storage 14 | . 14 14 Energy Gun 24 | . 25 14 Ballistic Cannon 1 | . . 10 Naked Turns . | . . . Heaviest Build 59 | 14 59 52 Greatest Support 40 | 20 40 40 Greatest Overweight (x) 15 | . 1 15 Average Overweight (x) . | . . 1 Largest Inventory Capacity 20 | . 20 20 Average Capacity 19 | . 19 20 Most Carried 8 | . 8 8 Average Carried 5 | . 5 7 Final Capacity 20 | 8 20 20 Final Carried 8 | 6 6 8 Class Distribution -------------------- 100% | Mutant Dominant Class ---------------- Mutant | -10/Materials Mutant | -10/Mines Resources | -11 -10 -10 ----------- Run | Yrd Mat Min Matter Collected 284 | 200 60 24 Remotely 84 | . 60 24 Salvage Created 607 | . 568 39 Parts 46 | . 40 6 Haulers Intercepted . | . . . Recyclers Shooed . | . . . Parts Field Recycled . | . . . Retrieved Matter . | . . . Parts Self-Destructed . | . . . Prevented . | . . . Kills | -11 -10 -10 ------- Run | Yrd Mat Min Combat Hostiles Destroyed 17 | . 16 1 Guns 15 | . 14 1 AOE 2 | . 2 . Classes Destroyed 4 | . 3 1 Builder 1 | . 1 . Swarmer 6 | . 6 . Grunt 10 | . 10 . Demolisher 1 | . . 1 Best Kill Streak 5 | . 5 1 Combat Bots Only 4 | . 4 1 Max Kills in Single Turn 2 | . 2 1 Gunslinging . | . . . Exploded 2 | . 2 . Melee . | . . . Uniques/NPCs Destroyed . | . . . Combat | -11 -10 -10 -------- Run | Yrd Mat Min Hostile Shots Fired 67 | . 51 16 Missed 16 | . 14 2 Damage Taken 998 | . 395 603 Core 261 | . 48 213 Absorbed by Shields . | . . . Core Remaining (%) 100 | 100 . . Volleys Fired 45 | . 41 4 Largest 2 | . 2 2 Hottest 100 | . 80 100 Shots Fired 77 | . 69 8 Gun 73 | . 69 4 Cannon 4 | . . 4 Launcher . | . . . Special . | . . . Kinetic 4 | . . 4 Thermal 3 | . . 3 Explosive . | . . . Electromagnetic 70 | . 69 1 Robot Hit Streak 15 | . 15 2 Robot Miss Streak 3 | . 3 2 Penetration Max . | . . . Secondary Targets . | . . . Shots Hit Robots 48 | . 45 3 Core Hits 28 | . 25 3 Critical Kills . | . . . Critical Parts Destroyed . | . . . Critical Strikes 2 | . 1 1 Blast 1 | . . 1 Corrupt 1 | . 1 . Melee Attacks . | . . . Impact . | . . . Slashing . | . . . Piercing . | . . . Sneak Attacks . | . . . Combat Hostiles . | . . . Follow-up Attacks . | . . . Damage Inflicted 778 | . 688 90 Guns 629 | . 578 51 Cannons 39 | . . 39 Explosions 110 | . 110 . Melee . | . . . Ramming . | . . . Kinetic 39 | . . 39 Thermal 161 | . 110 51 Explosive . | . . . Electromagnetic 578 | . 578 . Impact . | . . . Slashing . | . . . Piercing . | . . . Highest Corruption . | . . . Average Corruption . | . . . Corruption Purged . | . . . Corruption Blocked . | . . . Overload Shots . | . . . Overflow Damage 2 | . . 2 Projectiles 2 | . . 2 Explosions . | . . . Melee . | . . . Knockbacks . | . . . Impact . | . . . Kinetic . | . . . Secondary . | . . . Self-Inflicted Damage 18 | . 18 . Shots 1 | . 1 . Rammed . | . . . Targets Rammed . | . . . Kicked . | . . . Crushed . | . . . Highest Temperature 285 | . 285 72 Average Temperature 79 | . 85 32 Received Heat Transfer 177 | . 159 18 Siege Activations . | . . . Robots Corrupted . | . . . Combat Hostiles . | . . . Parts Fried . | . . . Impact Corruptions . | . . . Robots Melted . | . . . Combat Hostiles . | . . . Parts Melted . | . . . Heat Transferred 311 | . 200 111 Parts Sabotaged . | . . . Parts Stolen . | . . . Parts Stripped . | . . . Power Chain Reactions 2 | . 2 . Alert | -11 -10 -10 ------- Run | Yrd Mat Min Peak Influence 175 | . 175 35 Initial 22 | . . 22 Average 47 | . 50 22 Maximum Alert Level . | . . . Low Security (%) 100 | . 100 100 Level 1 . | . . . Level 2 . | . . . Level 3 . | . . . Level 4 . | . . . Level 5 . | . . . High Security . | . . . Max Security . | . . . Squads Dispatched 3 | . 3 . Investigation 3 | . 3 . Extermination . | . . . Reinforcement . | . . . Assault . | . . . Garrison . | . . . Intercept . | . . . Searches Triggered . | . . . Construction Impeded . | . . . Haulers Reinforced . | . . . Active Scanning Responses . | . . . Cargo Convoy Interrupts . | . . . Stealth | -11 -10 -10 --------- Run | Yrd Mat Min Distress Signals 2 | . 2 . Communications Jammed . | . . . Distress Signals . | . . . Times Spotted 30 | . 21 9 Peak Tracking Total 5 | . 5 5 Tactical Retreats . | . . . Traps | -11 -10 -10 ------- Run | Yrd Mat Min Traps Triggered 2 | . 2 . Indirectly . | . . . Trap Hack Attempts . | . . . Triggered . | . . . Disarmed . | . . . Reprogrammed . | . . . Reused . | . . . Traps Extracted . | . . . Installed . | . . . Triggered . | . . . Machines | -11 -10 -10 ---------- Run | Yrd Mat Min Machines Disabled . | . . . Max in Single Turn . | . . . Machines Repaired . | . . . Machines Dismantled . | . . . Machines Sabotaged . | . . . Overloaded Fab Kills . | . . . Hacking | -11 -10 -10 --------- Run | Yrd Mat Min Machines Accessed 4 | . 4 . Terminals 4 | . 4 . Fabricators . | . . . Repair Stations . | . . . Recycling Units . | . . . Scanalyzers . | . . . Garrison Access . | . . . Total Hacks 10 | . 10 . Successful 5 | . 5 . Failed 5 | . 5 . Catastrophic . | . . . Database Lockouts . | . . . Manual 9 | . 9 . Terminals 10 | . 10 . Fabricators . | . . . Repair Stations . | . . . Recycling Units . | . . . Scanalyzers . | . . . Garrison Access . | . . . Terminal Hacks 1 | . 1 . Prototype ID Bank 1 | . 1 . Fabricator Hacks . | . . . Repair Station Hacks . | . . . Recycling Unit Hacks . | . . . Scanalyzer . | . . . Garrison Access Hacks . | . . . Unauthorized Hacks 4 | . 4 . Terminals 4 | . 4 . Botnet 4 | . 4 . Fabricators . | . . . Repair Stations . | . . . Recycling Units . | . . . Scanalyzers . | . . . Garrison Access . | . . . Data Cores Recovered . | . . . Used . | . . . Hacking Detections 3 | . 3 . Full Trace Events 2 | . 2 . Feedback Events . | . . . Feedback Blocked . | . . . Robot Schematics Acquired . | . . . Robots Built . | . . . Authchips . | . . . Time . | . . . Total Robot Build Rating . | . . . Part Schematics Acquired . | . . . Parts Built . | . . . Authchips . | . . . Time . | . . . Total Part Build Rating . | . . . Parts Repaired . | . . . Time . | . . . Parts Recycled . | . . . Recycled Matter . | . . . Retrieved Matter . | . . . Retrieved Components . | . . . Parts Scanalyzed . | . . . Part Schematics Acquired . | . . . Parts Damaged . | . . . Bothacking | -11 -10 -10 ------------ Run | Yrd Mat Min Used RIF Installer . | . . . Robots Hacked . | . . . Non-combat . | . . . Combat . | . . . Robot Hacks Applied . | . . . Relay Couplers Released . | . . . Fabnet Peak Effective % . | . . . Robots Rewired . | . . . Allies Hacked . | . . . Hacks Repelled . | . . . Allies | -11 -10 -10 -------- Run | Yrd Mat Min Total Allies 3 | . . 3 Largest Group 3 | . . 3 Highest-Rated Group 40 | . . 40 Highest-Rated Ally 16 | . . 16 Total Orders . | . . . Ally Attacks 18 | . . 18 Total Damage 186 | . . 186 Kills 1 | . . 1 Allies Corrupted . | . . . Allies Melted . | . . . Intel | -11 -10 -10 ------- Run | Yrd Mat Min Robot Analysis Total . | . . . Derelict Logs Recovered 1 | . . 1 Drone Launches . | . . . Drone Recoveries . | . . . Exploration | -11 -10 -10 ------------- Run | Yrd Mat Min Turns Passed 1583 | . 1403 180 Spaces Moved 614 | 1 552 61 Core 2 | . . 2 Treads 557 | . 498 59 Legs 55 | 1 54 . Wheels . | . . . Hover . | . . . Flight . | . . . Fastest Speed 120 | 120 120 240 Average Speed 232 | 120 229 260 Slowest Speed 800 | 120 240 800 Overloaded Moves . | . . . Propulsion Burnouts . | . . . Robots Hopped . | . . . Cave-ins Triggered . | . . . Exploration Rate (%) 36 | 3 90 15 Regions Visited 2 Branch Regions 1 Pre-discovered Areas . | . . . Known Exits Taken . | . . . Unknown Exits Taken 2 | 1 1 . Scrap Searched 1 | . . 1 Spaces Dug . | . . . Terrain Destroyed 6 | . 6 . Melee . | . . . Projectile . | . . . AOE 6 | . 6 . Terrain Rammed . | . . . Walls Destroyed . | . . . Machines Disabled . | . . . Actions | -11 -10 -10 --------- Run | Yrd Mat Min Total 693 | . 620 73 Wait 20 | . 16 4 Move 612 | . 551 61 Hop . | . . . Pick Up 1 | . . 1 Fast Attach 4 | . 2 2 Attach 2 | . 2 . Detach 4 | . 3 1 Swap 2 | . 2 . Drop 3 | . 3 . Fire 45 | . 41 4 Melee . | . . . Ram . | . . . Kick . | . . . Crush . | . . . Escape Stasis . | . . . Rewire . | . . . Trap . | . . . Miscellaneous . | . . . Route ------- -11/Scrapyard -10/Materials (discovered 4 exits: [*Mat x3] / [*Min]) -10/Mines History --------- Turn | Location | Event 1 | -11/Scrapyard | Discovered new exit (range 0) 1 | -11/Scrapyard | Entered Materials 251 | -10/Materials | Discovered new exit (range 3) 302 | -10/Materials | Build established: Mutant 491 | -10/Materials | Discovered new exit (range 16) 794 | -10/Materials | Discovered new exit (range 10) 1351 | -10/Materials | Discovered new exit (range 9) 1404 | -10/Materials | Entered Mines 1474 | -10/Mines | Assisted by bots powering up and referring to "LRC-V3" 1544 | -10/Mines | Assembled infested the area 1546 | -10/Mines | Learned Materials terminal intel 1549 | -10/Mines | Assisted by a Guerilla fighting off Assembled 1564 | -10/Mines | Core integrity fell below 50% 1580 | -10/Mines | Core integrity fell below 20% 1584 | -10/Mines | Destroyed by as-32904 with Assembled Blade Last Messages --------------- Trooper 1a destroyed. Mercenary 1a destroyed. Lgt. Nuclear Core destroyed. Lgt. Treads destroyed. Destroyed Shock Absorption System. D-53 Grenadier Cmb. Airjet blasted off. The unstable cave ceiling collapses. Aluminum Leg crushed. The unstable cave ceiling collapses. D-53 Grenadier destroyed. The unstable cave ceiling collapses. as-37970 destroyed. D-53 Grenadier destroyed. R-06 Scavenger collects Mni. Grenade Launcher. The unstable cave ceiling collapses. R-06 Scavenger collects Terrain Scan Processor. The unstable cave ceiling collapses. Knocked back. The unstable cave ceiling collapses. as-68462 sneak attacks. Map ----- +----------------------------------------------------+ | ??????????????????????????????????????????????? | | ??????????????????????????????????????????????? | | ??????????????????????????????????????????????? | | ??????????????????????????????????????????????? | | ??????????????????????????????????????????????? | | ??????????????????????????????????????????????? | | ??????????????????????????????????????????????? | | ??????????????????????????????????????????????? | | ??????????????????????????????????????????????? | | ??????????????????????????????????????????????? | | ??????????????????????????????????????????????? | | ??????????????????????????????????????????????? | | ??????????????????????????????????????????????? | | ??????????????????????????????????????????????? | | ???????????????????####???????????????????????? | | ???????????????????# ###????????????????????? | | ??????????????????? ????????????????????? | | ??????????????????## ##???????????????????? | | ??????????????????? ##??????????????????? | | ????????????????#### %a ######?????????????? | | ????????????????# ##????????????? | | ????????????????# # !%] ### #????????? | | ????????????????# # # # #????????? | | ????????????????# # ==%% #????????? | | ?????????????????# aar ] *%! #???????????? | | ?????????????????# a@ != #??????????? | | ?????????????????# ## # k #????????? | | ?????????????????## # ###???? #???????? | | ??????????????????## #?????????????????? | | ??????????????????### ##?????????????????? | | ??????????????????# ### #??????????????????? | | ??????????????????# #?? ??????????????????? | | ??????????????????# ####??###?????????????????? | | ??????????????????# #?????????????????????????? | | ??????????????????# #?????????????????????????? | | ??????????????????# #?????????????????????????? | | ??????????????????#=#?????????????????????????? | | ??????????????????#%#?????????????????????????? | | ????????????####### ####??????????????????????? | | ????????????# / #???????##?????????????? | | ????????????# #?????? ##????????????? | | ????????????# ###### #????????????? | | ????????????##### #????????????? | | ????????????????# """ #???????????? | | ????????????????# ## # """ ???????????? | | ????????????????# ## #? """ ????????????? | | ????????????????# ## #??? ????????????? | | ????????????????# ## #?????? ???????????? | | ????????????????# #???????????????????? | | ????????????????# ####???????????????????? | +----------------------------------------------------+ Best States ------------- Heat Dissipation 25 Energy Generation 14 Energy Capacity 250 Matter Stores 300 Matter Capacity 300 Sight Range 16 Terrain Scan Density 10 Evasion (%) 55 Recoil Reduction 2 Item Schematics ----------------- None Robot Schematics ------------------ None Fabricated ------------ Nothing Alien Tech Used ----------------- None Achievements -------------- None Challenges ------------ None Game ------ Seed AssaultSpacefoldAccelerator Manual? 0 Play Time 00:12:33 Cumulative 45.6 hours Start 2024.04.12 @ 22:52:50 End 2024.04.12 @ 23:32:40 Sessions 1 Manual Loads 0 Difficulty Rogue Special Mode None Game No. 117 Rogue 115 Adventurer 2 Explorer 0 Win Type - Total 0 Types 0/0/0/0/0/0/0/0/0 Lore% 29 Gallery% 38 Achievement% 28 Wizard Run 0 Options --------- Layout 2 ASCII 0 Keyboard 1 Movement Numpad Keybinds 1 Fullscreen 2 Font 24/Smallcaps Map View 50x44 Zoom Use 0% Tactical HUD 1 Map Filters NONE Filters NONE Steam 1 RUN: 9a9ad422-16d3-43a6-89f0-13cd0124b8af